fUST/lending_fUST_20240804
["ID","MTS","AMOUNT","RATE_DAILY","PERIOD"]
[334063997,1722717032484,-4495.79263427,9.828e-05,2]
[334063999,1722717032493,-9250.94856642,9.828e-05,2]
[334064002,1722717032503,-188.18564016,9.999e-05,2]
[334064005,1722717032511,-156.91793096,9.999e-05,2]
[334064008,1722717032522,-779.59941017,9.999e-05,2]
[334064011,1722717032531,-849.3304683,9.999e-05,2]
[334064014,1722717032541,-154.73694719,9.999e-05,2]
[334064017,1722717032551,-244.82593148,9.999e-05,2]
[334064020,1722717032560,-154.77557542,9.999e-05,2]
[334064023,1722717032569,-250.17273888,9.999e-05,2]
[334064025,1722717032578,-420.0,0.00010809,2]
[334064028,1722717032587,-225.12,0.00010959,2]
[334064030,1722717032596,-742.85,0.00010959,2]
[334064032,1722717032605,-806.64,0.00010959,2]
[334064034,1722717032615,-672.2,0.00010959,2]
[334064036,1722717032624,-560.17,0.00010959,2]
[334064038,1722717032634,-466.81,0.00010959,2]
[334064040,1722717032643,-389.0,0.00010959,2]
[334064042,1722717032652,-324.17,0.00010959,2]
[334064045,1722717032662,-270.14,0.00010959,2]
[334064046,1722717032671,-225.12,0.00010959,2]
[334064048,1722717032680,-187.6,0.00010959,2]
[334064050,1722717032689,-156.33,0.00010959,2]
[334064052,1722717032698,-781.69,0.00010959,2]
[334064054,1722717032707,-250.0,0.00011051,2]
[334064056,1722717032716,-250.0,0.00011081,2]
[334064058,1722717032725,-250.0,0.00011111,2]
[334064060,1722717032734,-250.0,0.00011142,2]
[334064063,1722717032744,-250.0,0.00011172,2]
[334064064,1722717032755,-250.0,0.00011202,2]
[334064066,1722717032764,-250.0,0.00011232,2]
[334064068,1722717032773,-250.0,0.00011263,2]
[334064070,1722717032782,-250.0,0.00011293,2]
[334064073,1722717032793,-250.0,0.00011323,2]
[334064074,1722717032802,-250.0,0.00011354,2]
[334064076,1722717032811,-250.0,0.00011384,2]
[334064078,1722717032820,-250.0,0.00011414,2]
[334064080,1722717032830,-250.0,0.00011445,2]
[334064082,1722717032840,-250.0,0.00011475,2]
[334064084,1722717032849,-250.0,0.00011505,2]
[334064086,1722717032859,-159.87675674,0.00011535,2]
[334064089,1722717032871,-90.12324326,0.00011535,2]
[334064091,1722717032881,-250.0,0.00011566,2]
[334064093,1722717032890,-250.0,0.00011596,2]
[334064095,1722717032899,-250.0,0.00011626,2]
[334064097,1722717032909,-461.0,0.00011889,2]
[334064099,1722717032918,-2954.01473778,0.00011913,2]
[334064118,1722717038429,-11970.43942148,0.00011913,2]
[334064120,1722717038665,-898.78971019,0.00011913,2]
[334064122,1722717038679,-1796.21426784,0.00011913,2]
[334064125,1722717039102,-17873.38670729,0.00011913,2]
[334064127,1722717039114,-5823.96389892,0.00011913,2]
[334064129,1722717039127,-1019.01927174,0.00011913,2]
[334064130,1722717039137,-1966.15520709,0.000129,2]
[334064131,1722717039146,-165.800031,0.00012986,2]
[334064132,1722717039156,-9676.27282309,0.0001299,2]
[334064133,1722717039166,-283.65597239,0.00013,2]
[334064134,1722717039177,-2378.77,0.00013424,2]
[334064135,1722717039187,-2378.77,0.00013497,2]
[334064136,1722717039196,-2160.75117705,0.00013497,2]
[334064137,1722717039211,-218.01882295,0.00013497,2]
[334064138,1722717039220,-1966.15520709,0.00013563,2]
[334064139,1722717039230,-102.97192952,0.00013598,2]
[334064167,1722717040591,-273.37336231,9.9e-05,2]
[334064168,1722717040602,-263.14056906,0.00013598,2]
[334064169,1722717040612,-14623.75787436,0.00013686,2]
[334064170,1722717040624,-3439.54392272,0.00013686,2]
[334064171,1722717040648,-63967.7724494,0.00013686,2]
[334064172,1722717040658,-2378.77,0.00013687,2]
[334064173,1722717040669,-4657.27673119,0.00013688,2]
[334064174,1722717040679,-92177.1179432,0.00013688,2]
[334064175,1722717040688,-2378.77,0.00013697,2]
[334064176,1722717040699,-2378.77,0.00013697,2]
[334064177,1722717040709,-2378.77,0.00013697,2]
[334064178,1722717040718,-500.0,0.00013698,2]
[334064179,1722717040727,-500.0,0.00013698,2]
[334064180,1722717040735,-500.0,0.00013698,2]
[334064181,1722717040743,-500.0,0.00013698,2]
[334064182,1722717040752,-500.0,0.00013698,2]
[334064183,1722717040761,-500.0,0.00013698,2]
[334064184,1722717040771,-500.0,0.00013698,2]
[334064185,1722717040780,-502.64021438,0.00013698,2]
[334064186,1722717040790,-500.0,0.00013698,2]
[334064187,1722717040803,-500.0,0.00013698,2]
[334064188,1722717040813,-500.0,0.00013698,2]
[334064189,1722717040822,-500.0,0.00013698,2]
[334064190,1722717040831,-500.0,0.00013698,2]
[334064191,1722717040840,-500.0,0.00013698,2]
[334064192,1722717040849,-500.0,0.00013698,2]
[334064193,1722717040858,-500.0,0.00013698,2]
[334064194,1722717040867,-500.0,0.00013698,2]
[334064195,1722717040876,-500.0,0.00013698,2]
[334064196,1722717040885,-500.0,0.00013698,2]
[334064197,1722717040894,-519.42702461,0.00013698,2]
[334064198,1722717040903,-590.66859835,0.00013698,2]
[334064199,1722717040913,-377.49011062,0.00013698,2]
[334064200,1722717040922,-500.0,0.00013698,2]
[334064201,1722717040931,-500.0,0.00013698,2]
[334064202,1722717040940,-500.0,0.00013698,2]
[334064203,1722717040950,-500.0,0.00013698,2]
[334064204,1722717040959,-500.0,0.00013698,2]
[334064205,1722717040969,-506.80839058,0.00013698,2]
[334064206,1722717040978,-212.62017966,0.00013698,2]
[334064207,1722717040987,-500.0,0.00013698,2]
[334064208,1722717040997,-500.0,0.00013698,2]
[334064209,1722717041006,-292.53774457,0.00013698,2]
[334064210,1722717041015,-500.0,0.00013698,2]
[334064211,1722717041025,-500.0,0.00013698,2]
[334064212,1722717041034,-500.0,0.00013698,2]
[334064213,1722717041044,-500.0,0.00013698,2]
[334064214,1722717041058,-500.0,0.00013698,2]
[334064215,1722717041067,-1090.95,0.00013698,2]
[334064216,1722717041076,-500.0,0.00013698,2]
[334064217,1722717041087,-500.0,0.00013698,2]
[334064218,1722717041097,-500.0,0.00013698,2]
[334064219,1722717041109,-251.02775073,0.00013698,2]
[334064220,1722717041120,-500.0,0.00013698,2]
[334064221,1722717041132,-537.04,0.00013698,2]
[334064222,1722717041143,-500.0,0.00013698,2]
[334064223,1722717041154,-512.31653046,0.00013698,2]
[334064224,1722717041163,-504.0877914,0.00013698,2]
[334064225,1722717041176,-450.0,0.00013698,2]
[334064226,1722717041186,-500.0,0.00013698,2]
[334064227,1722717041197,-500.0,0.00013698,2]
[334064228,1722717041207,-500.0,0.00013698,2]
[334064229,1722717041218,-638.45,0.00013698,2]
[334064230,1722717041229,-500.0,0.00013698,2]
[334064231,1722717041238,-500.0,0.00013698,2]
[334064232,1722717041249,-500.0,0.00013698,2]
[334064233,1722717041262,-500.0,0.00013698,2]
[334064234,1722717041273,-500.0,0.00013698,2]
[334064235,1722717041283,-500.0,0.00013698,2]
[334064236,1722717041292,-500.0,0.00013698,2]
[334064237,1722717041304,-500.0,0.00013698,2]
[334064238,1722717041314,-500.0,0.00013698,2]
[334064239,1722717041323,-500.0,0.00013698,2]
[334064240,1722717041333,-511.11563533,0.00013698,2]
[334064241,1722717041342,-500.0,0.00013698,2]
[334064242,1722717041352,-500.0,0.00013698,2]
[334064243,1722717041361,-500.0,0.00013698,2]
[334064244,1722717041371,-500.0,0.00013698,2]
[334064245,1722717041380,-500.0,0.00013698,2]
[334064246,1722717041389,-500.0,0.00013698,2]
[334064247,1722717041398,-500.0,0.00013698,2]
[334064248,1722717041407,-500.0,0.00013698,2]
[334064249,1722717041417,-1101.11,0.00013698,2]
[334064250,1722717041426,-503.05056989,0.00013698,2]
[334064251,1722717041435,-500.0,0.00013698,2]
[334064252,1722717041444,-500.0,0.00013698,2]
[334064253,1722717041453,-500.0,0.00013698,2]
[334064254,1722717041463,-504.03913562,0.00013698,2]
[334064255,1722717041472,-500.0,0.00013698,2]
[334064256,1722717041481,-500.0,0.00013698,2]
[334064257,1722717041490,-500.0,0.00013698,2]
[334064258,1722717041500,-500.0,0.00013698,2]
[334064259,1722717041509,-500.0,0.00013698,2]
[334064260,1722717041518,-500.0,0.00013698,2]
[334064261,1722717041528,-500.0,0.00013698,2]
[334064262,1722717041537,-500.0,0.00013698,2]
[334064263,1722717041546,-500.0,0.00013698,2]
[334064264,1722717041558,-500.0,0.00013698,2]
[334064265,1722717041567,-500.0,0.00013698,2]
[334064266,1722717041577,-500.0,0.00013698,2]
[334064267,1722717041586,-450.0,0.00013698,2]
[334064268,1722717041596,-647.39,0.00013698,2]
[334064269,1722717041606,-500.0,0.00013698,2]
[334064270,1722717041711,-500.0,0.00013698,2]
[334064271,1722717041721,-500.0,0.00013698,2]
[334064272,1722717041731,-606.436354,0.00013698,2]
[334064273,1722717041740,-500.0,0.00013698,2]
[334064274,1722717041749,-500.0,0.00013698,2]
[334064275,1722717041758,-500.0,0.00013698,2]
[334064276,1722717041767,-500.0,0.00013698,2]
[334064277,1722717041776,-960.36,0.00013698,2]
[334064278,1722717041785,-622.02,0.00013698,2]
[334064279,1722717041795,-595.9442044,0.00013698,2]
[334064280,1722717041808,-500.0,0.00013698,2]
[334064281,1722717041817,-500.0,0.00013698,2]
[334064282,1722717041827,-500.0,0.00013698,2]
[334064283,1722717041836,-500.0,0.00013698,2]
[334064284,1722717041846,-500.0,0.00013698,2]
[334064285,1722717041855,-161.66849535,0.00013698,2]
[334064286,1722717041865,-500.0,0.00013698,2]
[334064287,1722717041874,-500.0,0.00013698,2]
[334064288,1722717041884,-531.72138596,0.00013698,2]
[334064289,1722717041894,-500.0,0.00013698,2]
[334064290,1722717041904,-500.0,0.00013698,2]
[334064291,1722717041914,-500.0,0.00013698,2]
[334064292,1722717041924,-500.0,0.00013698,2]
[334064293,1722717041933,-500.0,0.00013698,2]
[334064294,1722717041942,-500.0,0.00013698,2]
[334064295,1722717041951,-501.97761339,0.00013698,2]
[334064296,1722717041960,-500.0,0.00013698,2]
[334064297,1722717041969,-500.0,0.00013698,2]
[334064298,1722717041977,-511.02406958,0.00013698,2]
[334064299,1722717041987,-500.0,0.00013698,2]
[334064300,1722717041996,-500.0,0.00013698,2]
[334064301,1722717042006,-500.0,0.00013698,2]
[334064302,1722717042015,-500.0,0.00013698,2]
[334064303,1722717042024,-500.0,0.00013698,2]
[334064304,1722717042034,-500.0,0.00013698,2]
[334064305,1722717042043,-500.0,0.00013698,2]
[334064306,1722717042059,-721.19,0.00013698,2]
[334064307,1722717042068,-500.0,0.00013698,2]
[334064308,1722717042080,-500.0,0.00013698,2]
[334064309,1722717042089,-500.0,0.00013698,2]
[334064310,1722717042098,-176.92566855,0.00013698,2]
[334064311,1722717042107,-194.27418549,0.00013698,2]
[334064312,1722717042117,-178.9264899,0.00013698,2]
[334064313,1722717042126,-478.94770609,0.00013698,2]
[334064314,1722717042136,-207.35046671,0.00013698,2]
[334064315,1722717042147,-500.0,0.00013698,2]
[334064316,1722717042156,-500.0,0.00013698,2]
[334064317,1722717042165,-500.0,0.00013698,2]
[334064318,1722717042180,-500.0,0.00013698,2]
[334064319,1722717042189,-500.0,0.00013698,2]
[334064320,1722717042198,-500.0,0.00013698,2]
[334064321,1722717042207,-500.0,0.00013698,2]
[334064322,1722717042217,-503.06931546,0.00013698,2]
[334064323,1722717042227,-500.0,0.00013698,2]
[334064324,1722717042236,-500.0,0.00013698,2]
[334064325,1722717042245,-500.0,0.00013698,2]
[334064326,1722717042255,-765.11,0.00013698,2]
[334064327,1722717042265,-500.0,0.00013698,2]
[334064328,1722717042275,-507.20771898,0.00013698,2]
[334064329,1722717042284,-500.0,0.00013698,2]
[334064330,1722717042293,-192.18361047,0.00013698,2]
[334064331,1722717042308,-590.4,0.00013698,2]
[334064332,1722717042318,-500.0,0.00013698,2]
[334064333,1722717042326,-500.0,0.00013698,2]
[334064334,1722717042335,-500.0,0.00013698,2]
[334064335,1722717042344,-500.0,0.00013698,2]
[334064336,1722717042353,-500.0,0.00013698,2]
[334064337,1722717042362,-500.0,0.00013698,2]
[334064338,1722717042371,-500.0,0.00013698,2]
[334064339,1722717042380,-417.99611109,0.00013698,2]
[334064340,1722717042389,-525.27,0.00013698,2]
[334064341,1722717042398,-872.38,0.00013698,2]
[334064342,1722717042408,-1699.79,0.00013698,2]
[334064343,1722717042419,-500.0,0.00013698,2]
[334064344,1722717042430,-500.0,0.00013698,2]
[334064345,1722717042440,-500.0,0.00013698,2]
[334064346,1722717042450,-500.0,0.00013698,2]
[334064347,1722717042459,-500.0,0.00013698,2]
[334064348,1722717042468,-500.0,0.00013698,2]
[334064349,1722717042478,-500.0,0.00013698,2]
[334064350,1722717042488,-500.0,0.00013698,2]
[334064351,1722717042498,-500.0,0.00013698,2]
[334064352,1722717042507,-513.41672915,0.00013698,2]
[334064353,1722717042517,-500.0,0.00013698,2]
[334064354,1722717042526,-4273.06,0.00013698,2]
[334064355,1722717042536,-312.51887577,0.00013698,2]
[334064356,1722717042546,-500.0,0.00013698,2]
[334064357,1722717042558,-362.02501254,0.00013698,2]
[334064358,1722717042569,-500.0,0.00013698,2]
[334064359,1722717042579,-500.0,0.00013698,2]
[334064360,1722717042589,-500.0,0.00013698,2]
[334064361,1722717042599,-1821.61,0.00013698,2]
[334064362,1722717042609,-500.0,0.00013698,2]
[334064363,1722717042618,-500.0,0.00013698,2]
[334064364,1722717042627,-500.0,0.00013698,2]
[334064365,1722717042637,-500.0,0.00013698,2]
[334064366,1722717042648,-500.0,0.00013698,2]
[334064367,1722717042658,-500.0,0.00013698,2]
[334064368,1722717042667,-1428.74,0.00013698,2]
[334064369,1722717042677,-1007.5,0.00013698,2]
[334064370,1722717042688,-500.0,0.00013698,2]
[334064371,1722717042699,-500.0,0.00013698,2]
[334064372,1722717042708,-500.0,0.00013698,2]
[334064373,1722717042719,-500.0,0.00013698,2]
[334064374,1722717042729,-661.48,0.00013698,2]
[334064375,1722717042738,-500.0,0.00013698,2]
[334064376,1722717042747,-386.3386317,0.00013698,2]
[334064377,1722717042757,-502.8479274,0.00013698,2]
[334064378,1722717042767,-340.28223621,0.00013698,2]
[334064383,1722717043511,-159.71776379,0.00013698,2]
[334064384,1722717043520,-500.0,0.00013698,2]
[334064385,1722717043530,-500.0,0.00013698,2]
[334064386,1722717043539,-500.0,0.00013698,2]
[334064387,1722717043551,-500.0,0.00013698,2]
[334064388,1722717043560,-500.0,0.00013698,2]
[334064389,1722717043569,-1741.54,0.00013698,2]
[334064390,1722717043578,-500.0,0.00013698,2]
[334064391,1722717043587,-500.0,0.00013698,2]
[334064392,1722717043597,-500.0,0.00013698,2]
[334064393,1722717043606,-1404.85,0.00013698,2]
[334064394,1722717043616,-253.75529796,0.00013698,2]
[334064395,1722717043625,-600.49035524,0.00013698,2]
[334064396,1722717043634,-500.0,0.00013698,2]
[334064397,1722717043643,-500.0,0.00013698,2]
[334064398,1722717043652,-500.0,0.00013698,2]
[334064400,1722717043661,-501.47357418,0.00013698,2]
[334064402,1722717043671,-500.0,0.00013698,2]
[334064403,1722717043680,-500.0,0.00013698,2]
[334064404,1722717043689,-500.0,0.00013698,2]
[334064405,1722717043698,-500.0,0.00013698,2]
[334064406,1722717043707,-519.34,0.00013698,2]
[334064407,1722717043717,-5206.5,0.00013698,2]
[334064408,1722717043726,-500.0,0.00013698,2]
[334064409,1722717043735,-500.0,0.00013698,2]
[334064410,1722717043745,-500.0,0.00013698,2]
[334064411,1722717043754,-500.0,0.00013698,2]
[334064412,1722717043763,-500.0,0.00013698,2]
[334064413,1722717043772,-500.0,0.00013698,2]
[334064414,1722717043781,-500.0,0.00013698,2]
[334064415,1722717043790,-500.0,0.00013698,2]
[334064416,1722717043801,-500.0,0.00013698,2]
[334064417,1722717043810,-500.0,0.00013698,2]
[334064418,1722717043820,-500.0,0.00013698,2]
[334064419,1722717043829,-500.0,0.00013698,2]
[334064420,1722717043838,-500.0,0.00013698,2]
[334064421,1722717043847,-500.0,0.00013698,2]
[334064422,1722717043857,-500.0,0.00013698,2]
[334064423,1722717043866,-500.0,0.00013698,2]
[334064424,1722717043875,-500.0,0.00013698,2]
[334064425,1722717043887,-2183.59,0.00013698,2]
[334064426,1722717043898,-500.0,0.00013698,2]
[334064427,1722717043908,-500.0,0.00013698,2]
[334064428,1722717043918,-500.0,0.00013698,2]
[334064429,1722717043928,-539.67,0.00013698,2]
[334064430,1722717043940,-500.0,0.00013698,2]
[334064431,1722717043951,-500.0,0.00013698,2]
[334064432,1722717043962,-500.0,0.00013698,2]
[334064433,1722717043972,-500.0,0.00013698,2]
[334064434,1722717043982,-500.0,0.00013698,2]
[334064435,1722717043991,-500.0,0.00013698,2]
[334064436,1722717044003,-500.0,0.00013698,2]
[334064437,1722717044012,-563.21,0.00013698,2]
[334064438,1722717044023,-891.82,0.00013698,2]
[334064439,1722717044033,-500.0,0.00013698,2]
[334064440,1722717044044,-500.0,0.00013698,2]
[334064441,1722717044059,-500.0,0.00013698,2]
[334064442,1722717044069,-500.0,0.00013698,2]
[334064443,1722717044079,-500.0,0.00013698,2]
[334064444,1722717044091,-500.0,0.00013698,2]
[334064445,1722717044103,-500.0,0.00013698,2]
[334064446,1722717044115,-500.0,0.00013698,2]
[334064447,1722717044125,-500.0,0.00013698,2]
[334064448,1722717044135,-500.0,0.00013698,2]
[334064449,1722717044226,-500.0,0.00013698,2]
[334064450,1722717044235,-500.0,0.00013698,2]
[334064451,1722717044244,-500.0,0.00013698,2]
[334064452,1722717044254,-500.0,0.00013698,2]
[334064453,1722717044264,-500.0,0.00013698,2]
[334064454,1722717044274,-456.68442711,0.00013698,2]
[334064455,1722717044283,-500.0,0.00013698,2]
[334064456,1722717044292,-500.0,0.00013698,2]
[334064457,1722717044302,-500.0,0.00013698,2]
[334064458,1722717044310,-2910.25,0.00013698,2]
[334064459,1722717044319,-500.0,0.00013698,2]
[334064460,1722717044329,-633.02,0.00013698,2]
[334064461,1722717044338,-500.0,0.00013698,2]
[334064463,1722717044347,-371.06766861,0.00013698,2]
[334064465,1722717044356,-1343.25,0.00013698,2]
[334064467,1722717044365,-500.0,0.00013698,2]
[334064468,1722717044374,-500.0,0.00013698,2]
[334064470,1722717044383,-500.0,0.00013698,2]
[334064471,1722717044393,-540.65,0.00013698,2]
[334064473,1722717044402,-500.0,0.00013698,2]
[334064475,1722717044414,-586.3,0.00013698,2]
[334064476,1722717044425,-500.0,0.00013698,2]
[334064478,1722717044437,-1523.81,0.00013698,2]
[334064480,1722717044447,-500.0,0.00013698,2]
[334064481,1722717044456,-500.0,0.00013698,2]
[334064482,1722717044467,-500.0,0.00013698,2]
[334064483,1722717044476,-500.0,0.00013698,2]
[334064484,1722717044486,-688.77,0.00013698,2]
[334064485,1722717044495,-500.0,0.00013698,2]
[334064486,1722717044505,-588.73,0.00013698,2]
[334064487,1722717044515,-500.0,0.00013698,2]
[334064488,1722717044524,-500.0,0.00013698,2]
[334064489,1722717044532,-500.0,0.00013698,2]
[334064490,1722717044542,-500.70732046,0.00013698,2]
[334064491,1722717044552,-500.0,0.00013698,2]
[334064492,1722717044562,-500.0,0.00013698,2]
[334064493,1722717044571,-500.0,0.00013698,2]
[334064494,1722717044580,-500.0,0.00013698,2]
[334064495,1722717044589,-500.0,0.00013698,2]
[334064496,1722717044598,-500.0,0.00013698,2]
[334064497,1722717044608,-500.0,0.00013698,2]
[334064498,1722717044617,-227.709816,0.00013699,2]
[334064499,1722717044627,-150.112233,0.000137,2]
[334064500,1722717044636,-230.79611398,0.000137,2]
[334064501,1722717044645,-366.11249857,0.00013735,2]
[334064502,1722717044655,-500.0,0.00013861,2]
[334064503,1722717044664,-469.47179787,0.00013861,2]
[334064504,1722717044673,-500.0,0.00013861,2]
[334064505,1722717044683,-500.0,0.00013861,2]
[334064506,1722717044692,-500.0,0.00013861,2]
[334064507,1722717044701,-500.0,0.00013861,2]
[334064508,1722717044712,-500.0,0.00013861,2]
[334064509,1722717044722,-500.0,0.00013861,2]
[334064510,1722717044732,-500.0,0.00013861,2]
[334064511,1722717044743,-500.0,0.00013861,2]
[334064512,1722717044755,-500.0,0.00013861,2]
[334064513,1722717044767,-500.0,0.00013861,2]
[334064514,1722717044778,-626.28381328,0.00013861,2]
[334064515,1722717044796,-23044.2794858,0.00013862,2]
[334064516,1722717044807,-7732.89270884,0.00013862,2]
[334064517,1722717044817,-366.11249857,0.00013872,2]
[334064518,1722717044826,-55194.47506677,0.00013872,2]
[334064519,1722717044836,-6354.68917356,0.00013919,2]
[334064520,1722717044847,-3852.71498139,0.00013952,5]
[334064521,1722717044859,-23044.2794858,0.00013952,2]
[334064522,1722717044869,-2378.77,0.00013961,2]
[334064523,1722717044881,-151.0,0.00013962,2]
[334064524,1722717044892,-151.0,0.00013962,2]
[334064525,1722717044903,-151.0,0.00013962,2]
[334064526,1722717044914,-151.0,0.00013962,2]
[334064527,1722717044924,-151.0,0.00013962,2]
[334064528,1722717044933,-151.0,0.00013962,2]
[334064529,1722717044942,-46088.5589716,0.00013962,2]
[334064530,1722717044953,-2378.77,0.00013971,2]
[334064531,1722717044962,-2378.77,0.00013971,2]
[334064532,1722717044970,-500.0,0.00013972,2]
[334064533,1722717044980,-500.0,0.00013972,2]
[334064534,1722717044989,-500.0,0.00013972,2]
[334064535,1722717044998,-500.0,0.00013972,2]
[334064536,1722717045007,-500.0,0.00013972,2]
[334064537,1722717045017,-500.0,0.00013972,2]
[334064538,1722717045026,-500.0,0.00013972,2]
[334064539,1722717045035,-500.0,0.00013972,2]
[334064540,1722717045045,-500.0,0.00013972,2]
[334064541,1722717045056,-500.0,0.00013972,2]
[334064542,1722717045065,-500.0,0.00013972,2]
[334064543,1722717045074,-500.0,0.00013972,2]
[334064544,1722717045083,-1090.95,0.00013972,2]
[334064545,1722717045092,-500.0,0.00013972,2]
[334064546,1722717045101,-500.0,0.00013972,2]
[334064547,1722717045111,-537.04,0.00013972,2]
[334064548,1722717045120,-500.0,0.00013972,2]
[334064549,1722717045129,-500.0,0.00013972,2]
[334064550,1722717045139,-638.45,0.00013972,2]
[334064551,1722717045148,-500.0,0.00013972,2]
[334064552,1722717045158,-500.0,0.00013972,2]
[334064553,1722717045167,-445.50083456,0.00013972,2]
[334064554,1722717045178,-500.0,0.00013972,2]
[334064555,1722717045190,-500.0,0.00013972,2]
[334064556,1722717045199,-500.0,0.00013972,2]
[334064557,1722717045208,-500.0,0.00013972,2]
[334064558,1722717045219,-500.0,0.00013972,2]
[334064559,1722717045228,-285.80624649,0.00013972,2]
[334064560,1722717045237,-476.77975175,0.00013972,2]
[334064561,1722717045247,-500.0,0.00013972,2]
[334064562,1722717045256,-500.0,0.00013972,2]
[334064563,1722717045266,-219.94281907,0.00013972,2]
[334064564,1722717045276,-500.0,0.00013972,2]
[334064565,1722717045285,-1101.11,0.00013972,2]
[334064566,1722717045294,-500.0,0.00013972,2]
[334064567,1722717045305,-537.79,0.00013972,2]
[334064568,1722717045313,-500.0,0.00013972,2]
[334064569,1722717045322,-500.0,0.00013972,2]
[334064570,1722717045332,-500.0,0.00013972,2]
[334064571,1722717045342,-500.0,0.00013972,2]
[334064572,1722717045352,-500.0,0.00013972,2]
[334064573,1722717045362,-500.0,0.00013972,2]
[334064574,1722717045371,-500.0,0.00013972,2]
[334064575,1722717045381,-647.39,0.00013972,2]
[334064576,1722717045390,-500.0,0.00013972,2]
[334064577,1722717045401,-500.0,0.00013972,2]
[334064578,1722717045412,-500.0,0.00013972,2]
[334064579,1722717045421,-500.0,0.00013972,2]
[334064580,1722717045431,-500.0,0.00013972,2]
[334064581,1722717045440,-500.0,0.00013972,2]
[334064582,1722717045451,-960.36,0.00013972,2]
[334064583,1722717045461,-622.02,0.00013972,2]
[334064584,1722717045472,-500.0,0.00013972,2]
[334064585,1722717045483,-500.0,0.00013972,2]
[334064586,1722717045492,-500.0,0.00013972,2]
[334064587,1722717045503,-500.0,0.00013972,2]
[334064588,1722717045514,-500.0,0.00013972,2]
[334064589,1722717045524,-500.0,0.00013972,2]
[334064590,1722717045534,-500.0,0.00013972,2]
[334064591,1722717045543,-721.19,0.00013972,2]
[334064592,1722717045557,-500.0,0.00013972,2]
[334064593,1722717045570,-500.0,0.00013972,2]
[334064594,1722717045580,-500.0,0.00013972,2]
[334064595,1722717045589,-765.11,0.00013972,2]
[334064596,1722717045599,-500.0,0.00013972,2]
[334064597,1722717045608,-500.0,0.00013972,2]
[334064598,1722717045617,-590.4,0.00013972,2]
[334064599,1722717045626,-500.0,0.00013972,2]
[334064600,1722717045636,-257.85552854,0.00013972,2]
[334064601,1722717045758,-150.13396714,0.00013972,2]
[334064602,1722717045768,-193.34206441,0.00013972,2]
[334064603,1722717045777,-500.0,0.00013972,2]
[334064604,1722717045787,-500.0,0.00013972,2]
[334064605,1722717045796,-872.38,0.00013972,2]
[334064606,1722717045812,-1699.79,0.00013972,2]
[334064607,1722717045822,-500.0,0.00013972,2]
[334064608,1722717045831,-500.0,0.00013972,2]
[334064609,1722717045840,-500.0,0.00013972,2]
[334064611,1722717045849,-500.0,0.00013972,2]
[334064612,1722717045858,-500.0,0.00013972,2]
[334064613,1722717045867,-511.8061327,0.00013972,2]
[334064614,1722717045876,-500.0,0.00013972,2]
[334064615,1722717045885,-500.0,0.00013972,2]
[334064616,1722717045894,-4273.06,0.00013972,2]
[334064618,1722717045903,-500.0,0.00013972,2]
[334064619,1722717045912,-500.0,0.00013972,2]